bitfinex-derivatives/quotes_BTCF0:USTF0_20241019
["timestamp","ask_amount","ask_price","bid_price","bid_amount"]
[1729310826853,0.0001,68524.0,68523.0,0.25496408]
[1729310829861,0.0001,68524.0,68523.0,0.36988283]
[1729310830160,0.0001,68524.0,68523.0,0.36996783]
[1729310832259,0.00218958,68527.0,68526.0,0.072968]
[1729310832461,0.00218958,68527.0,68526.0,0.83286802]
[1729310832957,0.41669981,68533.0,68532.0,0.072962]
[1729310833153,0.41669981,68533.0,68532.0,0.25499471]
[1729310833557,0.031,68533.0,68532.0,0.25499471]
[1729310835963,0.0328,68536.0,68532.0,0.54283271]
[1729310836154,0.0328,68536.0,68535.0,0.16058839]
[1729310836356,0.0328,68536.0,68535.0,0.24358834]
[1729310836970,0.0328,68536.0,68535.0,0.15605895]
[1729310837563,0.0328,68536.0,68535.0,0.24358273]
[1729310838966,0.40956,68556.0,68543.0,0.072949]
[1729310839266,0.40956,68556.0,68535.0,0.10966377]
[1729310839267,0.072948,68545.0,68544.0,0.16324138]
[1729310840270,0.072948,68545.0,68544.0,0.09029338]
[1729310840462,0.072948,68545.0,68544.0,0.00729343]
[1729310840768,0.07295,68543.0,68542.0,0.07288871]
[1729310840968,0.072951,68542.0,68541.0,0.14584071]
[1729310841270,0.072951,68542.0,68541.0,0.072952]
[1729310841271,0.12404306,68542.0,68541.0,0.072952]
[1729310841570,0.18336334,68542.0,68541.0,0.072952]
[1729310843866,0.11041234,68542.0,68541.0,0.072952]
[1729310844071,0.05109206,68542.0,68541.0,0.072952]
[1729310847268,0.11022211,68542.0,68540.0,0.0072244]
[1729310847474,0.07295,68543.0,68538.0,0.3608]
[1729310847475,0.05109206,68541.0,68538.0,0.3608]
[1729310847775,0.05109206,68540.0,68539.0,0.072954]
[1729310848071,0.07295,68543.0,68539.0,0.00717027]
[1729310848370,0.07295,68543.0,68542.0,0.13132344]
[1729310848569,0.0001,68545.0,68544.0,0.072949]
[1729310848771,0.0001,68545.0,68544.0,0.49212144]
[1729310848960,0.0001,68545.0,68544.0,0.433849]
[1729310851966,0.0001,68545.0,68544.0,0.57958556]
[1729310852371,0.0001,68545.0,68544.0,0.6523581]
[1729310852973,0.0001,68545.0,68544.0,0.6785952]
[1729310853476,0.0001,68545.0,68544.0,0.67858208]
[1729310853673,0.0001,68545.0,68544.0,0.59644552]
[1729310854483,0.0001,68545.0,68544.0,0.5236861]
[1729310855275,0.0001,68545.0,68544.0,0.59644552]
[1729310855576,0.0001,68550.0,68549.0,0.072944]
[1729310855776,0.0001,68550.0,68549.0,0.13113575]
[1729310855967,0.02616878,68566.0,68549.0,0.13113575]
[1729310855968,0.3608,68569.0,68559.0,0.072933]
[1729310856167,0.05195958,68560.0,68559.0,0.3608]
[1729310856474,0.072925,68567.0,68559.0,0.3609]
[1729310856779,0.0311,68575.0,68574.0,0.072917]
[1729310856978,0.104016,68575.0,68574.0,0.433717]
[1729310857273,0.0323,68581.0,68577.0,0.072914]
[1729310857483,0.072913,68578.0,68577.0,0.072914]
[1729310860668,0.0311,68580.0,68575.0,0.072915]
[1729310860873,0.072915,68576.0,68575.0,0.072915]
[1729310861473,0.072916,68575.0,68574.0,0.3609]
[1729310861977,0.072916,68575.0,68574.0,0.0001]
[1729310871179,0.072919,68572.0,68571.0,0.072919]
[1729310871583,0.072919,68572.0,68566.0,0.0001]
[1729310871584,0.072925,68568.0,68567.0,0.072924]
[1729310873376,0.0001,68575.0,68566.0,0.0001]
[1729310873575,0.0001,68575.0,68574.0,0.073017]
[1729310878180,0.11150698,68575.0,68574.0,0.073017]
[1729310880583,0.05165232,68575.0,68574.0,0.02673018]
[1729310880986,0.11150698,68575.0,68574.0,0.02673018]
[1729310881178,0.05165232,68575.0,68574.0,0.02673018]
[1729310881377,0.17965326,68575.0,68574.0,0.09964718]
[1729310886184,0.0001,68575.0,68574.0,0.09964718]
[1729310893293,0.27039658,68575.0,68574.0,0.03119753]
[1729310894495,0.33814971,68575.0,68574.0,0.03119753]
[1729310894697,0.17859997,68575.0,68574.0,0.03119753]
[1729310895487,0.17859997,68575.0,68574.0,0.05754967]
[1729310901303,0.17859997,68575.0,68573.0,0.0623]
[1729310901304,0.0001,68575.0,68573.0,0.0623]
[1729310901499,0.0001,68575.0,68574.0,0.072917]
[1729310908197,0.17533697,68575.0,68574.0,0.02384671]
[1729310908392,0.17533697,68575.0,68573.0,0.08829118]
[1729310908596,0.17523697,68574.0,68573.0,0.16120918]
[1729310911808,0.17523697,68574.0,68573.0,0.16080918]
[1729310916508,0.0001,68575.0,68574.0,0.072917]
[1729310917009,0.0001,68575.0,68574.0,0.073017]
[1729310917193,0.0001,68579.0,68578.0,0.072913]
[1729310917409,0.0001,68579.0,68578.0,0.433813]
[1729310918006,0.0001,68579.0,68578.0,0.44125091]
[1729310920710,0.00218896,68590.0,68589.0,0.072901]
[1729310921010,0.00218896,68590.0,68589.0,0.073001]
[1729310922202,0.0632,68601.0,68589.0,0.073001]
[1729310922407,0.072893,68597.0,68590.0,0.0729]
[1729310922707,0.0632,68601.0,68590.0,0.0319]
[1729310922708,0.072894,68596.0,68590.0,0.0319]
[1729310922910,0.072894,68596.0,68595.0,0.072895]
[1729310926310,0.3608,68598.0,68597.0,0.072893]
[1729310926609,0.3608,68598.0,68597.0,0.072993]
[1729310927406,0.433692,68598.0,68597.0,0.072993]
[1729310930310,0.072892,68598.0,68597.0,0.072993]
[1729310930707,0.072892,68598.0,68597.0,0.09889793]
[1729310931402,0.072892,68598.0,68594.0,0.22456991]
[1729310931403,0.24985811,68598.0,68594.0,0.22456991]
[1729310931603,0.24985911,68597.0,68594.0,0.22456991]
[1729310931803,0.17696611,68596.0,68595.0,0.072895]
[1729310932515,0.24986011,68596.0,68595.0,0.072895]
[1729310934210,0.17696611,68596.0,68595.0,0.072895]
[1729310934512,0.24986011,68596.0,68595.0,0.072895]
[1729310935314,0.0729,68590.0,68589.0,0.0001]
[1729310935518,0.18269518,68590.0,68589.0,0.0001]
[1729310935708,1.08164819,68590.0,68589.0,0.0001]
[1729310935908,1.10716896,68590.0,68589.0,0.0001]
[1729310936107,0.94738336,68590.0,68589.0,0.0001]
[1729310936311,0.072905,68585.0,68584.0,0.02618936]
[1729310936619,0.46460234,68585.0,68578.0,0.08044991]
[1729310936814,0.072909,68582.0,68580.0,0.072911]
[1729310937118,0.16730694,68581.0,68580.0,0.072911]
[1729310938411,0.072909,68582.0,68580.0,0.072911]
[1729310938617,0.072909,68582.0,68581.0,0.0001]
[1729310938917,0.072909,68582.0,68581.0,0.07301]
[1729310939823,0.072909,68582.0,68581.0,0.0001]
[1729310940724,0.3608,68584.0,68581.0,0.0001]
[1729310941024,0.3608,68584.0,68583.0,0.0001]
[1729310941316,0.433706,68584.0,68583.0,0.0001]
[1729310942722,0.433706,68584.0,68583.0,0.073008]
[1729310948321,0.3608,68584.0,68583.0,0.073008]
[1729310949919,0.0001,68585.0,68584.0,0.072906]
[1729310950219,0.0001,68585.0,68584.0,0.073006]
[1729310953519,0.0001,68585.0,68584.0,0.25959118]
[1729310956526,0.433805,68585.0,68584.0,0.25959118]
[1729310958930,0.433805,68585.0,68584.0,0.25969816]
[1729310962930,0.433805,68585.0,68584.0,0.15817727]
[1729310963537,0.433805,68585.0,68584.0,0.24557332]
[1729310963734,0.433805,68585.0,68584.0,0.24576016]
[1729310964535,0.433805,68585.0,68584.0,0.15836411]
[1729310966529,0.433805,68585.0,68584.0,0.08545811]
[1729310968635,0.433805,68585.0,68584.0,0.0001]
[1729310969140,0.433805,68585.0,68584.0,0.05842189]
[1729310969736,0.073005,68585.0,68584.0,0.05842189]
[1729310970840,0.073005,68585.0,68584.0,0.0001]
[1729310973245,0.073005,68585.0,68584.0,0.073006]
[1729310973543,0.0001,68585.0,68584.0,0.073006]
[1729310973736,0.073005,68585.0,68584.0,0.073006]
[1729310974137,0.073005,68585.0,68584.0,0.13132789]
[1729310975442,0.073005,68585.0,68584.0,0.073006]
[1729310975631,0.073005,68585.0,68584.0,0.26019555]
[1729310978447,0.073005,68585.0,68584.0,0.26010895]
[1729310983347,0.073005,68585.0,68584.0,0.2602453]
[1729310983546,0.073005,68585.0,68584.0,0.11675362]
[1729310984342,0.073005,68585.0,68584.0,0.073006]
[1729310984547,0.073005,68585.0,68584.0,0.11675362]
[1729310984847,0.433805,68585.0,68584.0,0.073006]
[1729310985549,0.433805,68585.0,68584.0,0.11675362]
[1729310985749,0.433805,68585.0,68584.0,0.073006]
[1729310986150,0.433805,68585.0,68584.0,0.11675362]
[1729310986337,0.073005,68585.0,68584.0,0.073006]
[1729310986543,0.433805,68585.0,68584.0,0.073006]
[1729310986742,0.433805,68585.0,68584.0,0.11675362]
[1729310986945,0.073005,68585.0,68584.0,0.11675362]
[1729310987249,0.073005,68585.0,68584.0,0.073006]
[1729310987250,0.433805,68585.0,68584.0,0.073006]
[1729310987450,0.433805,68585.0,68584.0,0.11675362]
[1729310988351,0.433805,68585.0,68584.0,0.073006]
[1729310990648,0.073005,68585.0,68584.0,0.26030604]
[1729310990850,0.433805,68585.0,68584.0,0.26030604]
[1729310991247,0.073005,68585.0,68584.0,0.26030604]
[1729310991651,0.433805,68585.0,68584.0,0.26030604]
[1729310991857,0.073005,68585.0,68584.0,0.26030604]
[1729310992050,0.433805,68585.0,68584.0,0.26030604]
[1729310992655,0.433805,68585.0,68584.0,0.36241976]
[1729310993658,0.073005,68585.0,68584.0,0.26030604]
[1729310993954,0.433805,68585.0,68584.0,0.26030604]
[1729310994250,0.433805,68585.0,68584.0,0.36241976]
[1729310995055,0.433805,68585.0,68584.0,0.26030604]
[1729310995250,0.433805,68585.0,68584.0,0.36241976]
[1729310995760,0.433805,68585.0,68584.0,0.48069195]
[1729310995962,0.073005,68585.0,68584.0,0.48069195]
[1729310996252,0.433805,68585.0,68584.0,0.48069195]
[1729310996760,0.433805,68585.0,68584.0,0.26030604]
[1729310998254,0.433805,68585.0,68584.0,0.26026899]
[1729310998659,0.433805,68585.0,68584.0,0.073006]
[1729310998848,0.073005,68585.0,68584.0,0.073006]
[1729311005661,0.073005,68585.0,68584.0,0.26025222]
[1729311007067,0.433805,68585.0,68584.0,0.26025222]
[1729311007265,0.073005,68585.0,68584.0,0.26025222]
[1729311007465,0.433805,68585.0,68584.0,0.26025222]
[1729311008266,0.073005,68585.0,68584.0,0.26025222]
[1729311008564,0.433805,68585.0,68584.0,0.26025222]
[1729311010672,0.073005,68585.0,68584.0,0.26025222]
[1729311011463,0.073005,68585.0,68584.0,0.26032651]
[1729311013065,0.073005,68585.0,68584.0,0.18742051]
[1729311013464,0.073005,68585.0,68584.0,0.18748815]
[1729311014672,0.433805,68585.0,68584.0,0.18748815]
[1729311016470,0.433805,68585.0,68584.0,0.18746465]
[1729311020869,0.433805,68585.0,68584.0,0.04386125]
[1729311027978,0.433805,68585.0,68584.0,0.0001]
[1729311028680,0.433805,68585.0,68584.0,0.18741606]
[1729311029883,0.433805,68585.0,68584.0,0.28952889]
[1729311030591,0.433805,68585.0,68584.0,0.18741606]
[1729311031097,0.433805,68585.0,68584.0,0.28952889]
[1729311031593,0.433805,68585.0,68584.0,0.18741606]
[1729311031894,0.433805,68585.0,68584.0,0.28952889]
[1729311033091,0.433805,68585.0,68584.0,0.36243489]
[1729311033292,0.433805,68585.0,68584.0,0.26032206]
[1729311034189,0.433805,68585.0,68584.0,0.37834342]
[1729311034792,0.3609,68585.0,68584.0,0.37834342]
[1729311035400,0.0001,68596.0,68590.0,0.0729]
[1729311035702,0.072898,68592.0,68590.0,0.0729]
[1729311036003,0.072898,68592.0,68590.0,0.073]
[1729311036403,0.072898,68592.0,68590.0,0.13130653]
[1729311037495,0.072898,68592.0,68590.0,0.073]
[1729311037895,0.072898,68592.0,68590.0,0.1352]
[1729311038302,0.072999,68591.0,68590.0,0.1352]
[1729311042802,0.072999,68591.0,68590.0,0.17889748]
[1729311043805,0.072999,68591.0,68590.0,0.2201658]
[1729311044406,0.072999,68591.0,68590.0,0.24648826]
[1729311044711,0.072999,68591.0,68590.0,0.34772886]
[1729311046209,0.072999,68591.0,68590.0,0.24648826]
[1729311050512,0.0001,68591.0,68590.0,0.24648826]
[1729311050709,0.0001,68596.0,68594.0,0.072896]
[1729311050710,0.072895,68595.0,68594.0,0.072896]
[1729311050914,0.072895,68595.0,68594.0,0.25907356]
[1729311055607,0.072895,68595.0,68594.0,0.25854745]
[1729311058810,0.072895,68595.0,68594.0,0.072996]
[1729311065113,0.072895,68595.0,68594.0,0.13122728]
[1729311065924,0.072895,68595.0,68594.0,0.36084244]
[1729311066318,0.072895,68595.0,68594.0,0.47797389]
[1729311066623,0.072895,68595.0,68594.0,0.37587424]
[1729311068825,0.072895,68595.0,68594.0,0.47786099]
[1729311069022,0.072895,68595.0,68594.0,0.37587424]
[1729311073214,0.072895,68595.0,68594.0,0.3607359]
[1729311073419,0.072895,68595.0,68594.0,0.47790254]
[1729311073620,0.072895,68595.0,68594.0,0.36056642]
[1729311073820,0.072895,68595.0,68594.0,0.21870318]
[1729311074133,0.072895,68595.0,68594.0,0.11671007]
[1729311074324,0.072895,68595.0,68594.0,0.072996]
[1729311080834,0.072895,68595.0,68594.0,0.25858258]
[1729311082230,0.072895,68595.0,68594.0,0.36057569]
[1729311087041,0.072895,68595.0,68594.0,0.37576678]
[1729311088437,0.072895,68595.0,68594.0,0.37579982]
[1729311088936,0.072895,68595.0,68594.0,0.072996]
[1729311089336,0.072895,68595.0,68594.0,0.0001]
[1729311089929,0.072895,68595.0,68594.0,0.05842553]
[1729311095839,0.072895,68595.0,68594.0,0.18582117]
[1729311096340,0.072895,68595.0,68594.0,0.30307892]
[1729311099953,0.072895,68595.0,68594.0,0.37597492]
[1729311105943,0.072895,68595.0,68594.0,0.25871717]
[1729311106343,0.072895,68595.0,68594.0,0.30311339]
[1729311106545,0.072895,68595.0,68594.0,0.18582117]
[1729311111044,0.072895,68595.0,68594.0,0.08482829]
[1729311112645,0.072895,68595.0,68594.0,0.08482049]
[1729311119057,0.072895,68595.0,68594.0,0.18587187]
[1729311121054,0.072895,68595.0,68594.0,0.18590964]
[1729311123762,0.072895,68595.0,68593.0,0.08747063]
[1729311123763,0.072896,68594.0,68593.0,0.08747063]
[1729311123954,0.072899,68591.0,68590.0,0.0001]
[1729311124151,0.433699,68591.0,68590.0,0.0001]
[1729311130358,0.45963823,68591.0,68590.0,0.0001]
[1729311138775,0.45963823,68591.0,68590.0,0.084013]
[1729311140571,0.433699,68591.0,68590.0,0.084013]
[1729311143775,0.433699,68591.0,68590.0,0.17139771]
[1729311144369,0.433699,68591.0,68590.0,0.084013]
[1729311145468,0.433699,68591.0,68590.0,0.08405638]
[1729311149078,0.433699,68591.0,68590.0,0.0001]
[1729311153479,0.433699,68591.0,68590.0,0.04381239]
[1729311156179,0.433699,68591.0,68590.0,0.18432025]
[1729311156681,0.433699,68591.0,68590.0,0.18422025]
[1729311160184,0.3608,68591.0,68590.0,0.08404841]
[1729311160386,0.433699,68591.0,68590.0,0.1842309]
[1729311164088,0.433699,68591.0,68590.0,0.10018249]
[1729311164292,0.072903,68587.0,68586.0,0.13123548]
[1729311168689,0.072904,68586.0,68585.0,0.05833148]
[1729311168991,0.3608,68591.0,68583.0,0.072907]
[1729311168992,0.072906,68584.0,68583.0,0.072907]
[1729311171295,0.072906,68584.0,68583.0,0.48992996]
[1729311172701,0.072906,68584.0,68583.0,0.37320589]
[1729311179106,0.433706,68584.0,68583.0,0.37320589]
[1729311179304,0.433706,68584.0,68583.0,0.072907]
[1729311179602,0.433706,68584.0,68583.0,0.14583243]
[1729311179794,0.433706,68584.0,68583.0,0.072907]
[1729311179997,0.433706,68584.0,68583.0,0.22991193]
[1729311180301,0.433706,68584.0,68583.0,0.14583243]
[1729311181503,0.433706,68584.0,68583.0,0.22990964]
[1729311181706,0.433706,68584.0,68583.0,0.14583243]
[1729311182007,0.433706,68584.0,68583.0,0.072907]
[1729311182208,0.433706,68584.0,68583.0,0.14583243]
[1729311182504,0.433706,68584.0,68583.0,0.22990366]
[1729311182704,0.433706,68584.0,68583.0,0.14583243]
[1729311183406,0.433706,68584.0,68583.0,0.22991488]
[1729311183905,0.433706,68584.0,68583.0,0.072907]
[1729311184605,0.433706,68584.0,68583.0,0.14583243]
[1729311184904,0.433706,68584.0,68583.0,0.072907]
[1729311185295,0.433706,68584.0,68583.0,0.14583243]
[1729311185503,0.433706,68584.0,68583.0,0.072907]
[1729311186198,0.433706,68584.0,68583.0,0.35939366]
[1729311187402,0.433706,68584.0,68583.0,0.25730672]
[1729311188202,0.433706,68584.0,68583.0,0.37376594]
[1729311188403,0.433706,68584.0,68583.0,0.35941734]
[1729311189702,0.433706,68584.0,68583.0,0.4758421]
[1729311190302,0.433706,68584.0,68583.0,0.2573304]
[1729311190501,0.433706,68584.0,68583.0,0.35941734]
[1729311191709,0.433706,68584.0,68583.0,0.2573304]
[1729311195799,0.433706,68584.0,68583.0,0.072907]
[1729311198612,0.072906,68584.0,68583.0,0.072907]
[1729311202117,0.072906,68584.0,68583.0,0.15695061]
[1729311202511,0.072906,68584.0,68583.0,0.08404361]
[1729311204318,0.072906,68584.0,68583.0,0.15695161]
[1729311206517,0.072906,68584.0,68583.0,0.08404361]
[1729311208424,0.072906,68584.0,68583.0,0.18425964]
[1729311210423,0.072903,68587.0,68583.0,0.18439832]
[1729311210632,0.38657914,68588.0,68586.0,0.0001]
[1729311210821,0.09868114,68588.0,68587.0,0.18449832]
[1729311211225,0.45948114,68588.0,68587.0,0.18449832]
[1729311212015,0.45948114,68588.0,68587.0,0.08422479]
[1729311212327,0.433702,68588.0,68587.0,0.18463987]
[1729311215625,0.433702,68588.0,68587.0,0.18465287]
[1729311216624,0.433702,68588.0,68587.0,0.073003]
[1729311219918,0.072902,68588.0,68587.0,0.073003]
[1729311223627,0.072902,68588.0,68587.0,0.25729295]
[1729311231932,0.072902,68588.0,68587.0,0.18438995]
[1729311235040,0.072902,68588.0,68587.0,0.0001]
[1729311235243,0.072902,68588.0,68587.0,0.18443335]
[1729311237632,0.072902,68588.0,68587.0,0.25733635]
[1729311238535,0.072902,68588.0,68587.0,0.073003]
[1729311239340,0.433702,68588.0,68587.0,0.073003]
[1729311239941,0.072902,68588.0,68587.0,0.073003]
[1729311240240,0.433702,68588.0,68587.0,0.073003]
[1729311240635,0.433702,68588.0,68587.0,0.0001]
[1729311242035,0.072902,68588.0,68587.0,0.0001]
[1729311246550,0.072902,68588.0,68587.0,0.18440485]
[1729311246740,0.072902,68588.0,68587.0,0.28645689]
[1729311248342,0.072902,68588.0,68587.0,0.18440485]
[1729311253547,0.072902,68588.0,68587.0,0.0001]
[1729311253851,0.072902,68588.0,68587.0,0.04385838]
[1729311261546,0.072902,68588.0,68587.0,0.18440945]
[1729311263059,0.072902,68588.0,68587.0,0.08418785]
[1729311263251,0.072902,68588.0,68587.0,0.18441734]
[1729311268648,0.072902,68588.0,68587.0,0.0001]
[1729311274363,0.072902,68588.0,68587.0,0.0438465]
[1729311276656,0.072902,68588.0,68587.0,0.1847288]
[1729311277668,0.072902,68588.0,68587.0,0.0001]
[1729311277969,0.072902,68588.0,68587.0,0.18488461]
[1729311279059,0.433702,68588.0,68587.0,0.18488461]
[1729311283873,0.433702,68588.0,68587.0,0.0001]
[1729311288064,0.072902,68588.0,68587.0,0.0001]
[1729311288267,0.433702,68588.0,68587.0,0.0001]
[1729311289775,0.072902,68588.0,68587.0,0.0001]
[1729311289976,0.433702,68588.0,68587.0,0.0001]
[1729311291772,0.433702,68588.0,68587.0,0.18485556]
[1729311292566,0.9608,68588.0,68580.0,0.10205204]
[1729311292870,0.63608787,68581.0,68579.0,0.10205204]
[1729311293074,0.63608787,68581.0,68576.0,0.10205204]
[1729311293075,0.072913,68578.0,68576.0,0.10205204]
[1729311293273,0.072913,68578.0,68572.0,0.47743091]
[1729311293274,0.072913,68578.0,68577.0,0.0999692]
[1729311295475,0.433713,68578.0,68577.0,0.0999692]
[1729311295975,0.072915,68576.0,68571.0,0.00218738]
[1729311296165,0.46109336,68578.0,68574.0,0.08739702]
[1729311296389,0.46109336,68578.0,68571.0,0.00218738]
[1729311296390,0.072917,68574.0,68572.0,0.08739702]
[1729311296579,0.072917,68574.0,68571.0,0.00218738]
[1729311296580,0.072919,68572.0,68571.0,0.00218738]
[1729311296971,0.072923,68568.0,68567.0,0.08739702]
[1729311297174,0.072925,68567.0,68565.0,0.0727791]
[1729311297480,0.433726,68566.0,68565.0,0.0727791]
[1729311297664,0.3608,68566.0,68564.0,0.0727791]
[1729311297865,0.072927,68565.0,68564.0,0.0727791]
[1729311298067,0.3608,68566.0,68562.0,0.0727791]
[1729311298368,0.072928,68564.0,68563.0,0.07304]
[1729311299278,0.07293,68562.0,68561.0,0.07304]
[1729311301279,0.072931,68561.0,68560.0,0.07304]
[1729311302483,0.072932,68560.0,68559.0,0.07304]
[1729311302778,0.433732,68560.0,68559.0,0.07304]
[1729311303365,0.3608,68560.0,68558.0,0.07304]
[1729311303578,0.072933,68559.0,68558.0,0.07304]
[1729311305677,0.072934,68558.0,68557.0,0.07304]
[1729311306772,0.072935,68557.0,68556.0,0.07304]
[1729311307788,0.072937,68555.0,68554.0,0.00218787]
[1729311309883,0.072937,68555.0,68554.0,0.07522787]
[1729311310473,0.072937,68555.0,68554.0,0.07084859]
[1729311310675,0.672937,68555.0,68554.0,0.06865718]
[1729311311485,0.072937,68555.0,68554.0,0.06865718]
[1729311311782,0.072937,68555.0,68544.0,0.06865718]
[1729311311978,0.072948,68545.0,68544.0,0.14160618]
[1729311315684,0.072949,68544.0,68543.0,0.05802129]
[1729311315881,0.072949,68544.0,68537.0,0.1457691]
[1729311315882,0.072952,68541.0,68540.0,0.05802129]
[1729311316080,0.072955,68538.0,68537.0,0.07299]
[1729311316278,0.072955,68538.0,68537.0,0.09876785]
[1729311321181,0.072955,68538.0,68537.0,0.15678914]
[1729311321682,0.433755,68538.0,68537.0,0.09876785]
[1729311321884,0.433755,68538.0,68537.0,0.15678914]
[1729311322081,0.433755,68538.0,68537.0,0.09876785]
[1729311322477,0.433755,68538.0,68537.0,0.15684014]
[1729311323078,0.433755,68538.0,68537.0,0.09876785]
[1729311323379,0.072955,68538.0,68537.0,0.09876785]
[1729311324382,0.029155,68538.0,68537.0,0.09876785]
[1729311324585,0.072955,68538.0,68537.0,0.07299]
[1729311327291,0.433755,68538.0,68537.0,0.07299]
[1729311331288,0.072955,68538.0,68537.0,0.07299]
[1729311331493,0.433755,68538.0,68537.0,0.07299]
[1729311332587,0.072955,68538.0,68537.0,0.07299]
[1729311332787,0.433755,68538.0,68537.0,0.07299]
[1729311333191,0.072955,68538.0,68537.0,0.07299]
[1729311333392,0.433755,68538.0,68537.0,0.07299]
[1729311335783,0.433755,68538.0,68537.0,0.23203716]
[1729311335990,0.072955,68538.0,68537.0,0.23203716]
[1729311336184,0.433755,68538.0,68537.0,0.23203716]
[1729311336592,0.433755,68538.0,68537.0,0.15925806]
[1729311336791,0.072955,68538.0,68537.0,0.15925806]
[1729311337093,0.433755,68538.0,68537.0,0.15925806]
[1729311337293,0.072955,68538.0,68537.0,0.15925806]
[1729311337491,0.433755,68538.0,68537.0,0.15925806]
[1729311337688,0.072955,68538.0,68537.0,0.15925806]
[1729311338002,0.433755,68538.0,68537.0,0.15925806]
[1729311338586,0.433755,68538.0,68537.0,0.1593482]
[1729311339294,0.072955,68538.0,68537.0,0.1593482]
[1729311339501,0.433755,68538.0,68537.0,0.1593482]
[1729311339902,0.072955,68538.0,68537.0,0.1593482]
[1729311340090,0.433755,68538.0,68537.0,0.1593482]
[1729311341092,0.072955,68538.0,68537.0,0.24674522]
[1729311341300,0.433755,68538.0,68537.0,0.24674522]
[1729311342597,0.433755,68538.0,68537.0,0.1593482]
[1729311343387,0.433755,68538.0,68537.0,0.15945006]
[1729311344005,0.433755,68538.0,68537.0,0.07299]
[1729311345503,0.433755,68538.0,68537.0,0.1167397]
[1729311348004,0.072955,68538.0,68537.0,0.1167397]
[1729311348199,0.433755,68538.0,68537.0,0.1167397]
[1729311350298,0.072955,68538.0,68537.0,0.1167397]
[1729311350504,0.433755,68538.0,68537.0,0.1167397]
[1729311351905,0.433755,68538.0,68537.0,0.26279201]
[1729311352106,0.072955,68538.0,68537.0,0.26279201]
[1729311352302,0.433755,68538.0,68537.0,0.26279201]
[1729311353606,0.072955,68538.0,68537.0,0.26279201]
[1729311354006,0.433755,68538.0,68537.0,0.26279201]
[1729311358201,0.072955,68538.0,68537.0,0.26279201]
[1729311358407,0.433755,68538.0,68537.0,0.26279201]
[1729311358903,0.433755,68538.0,68537.0,0.11679214]
[1729311360612,0.433755,68538.0,68537.0,0.07299]
[1729311360815,0.072955,68538.0,68537.0,0.07299]
[1729311361011,0.433755,68538.0,68537.0,0.07299]
[1729311362912,0.46010564,68538.0,68537.0,0.07299]
[1729311363416,0.50650672,68538.0,68537.0,0.07299]
[1729311363928,1.10650672,68538.0,68537.0,0.07299]
[1729311364208,0.072956,68537.0,68528.0,0.07299]
[1729311364409,0.433765,68529.0,68528.0,0.07299]
[1729311365917,0.433765,68529.0,68528.0,0.26345642]
[1729311369307,0.433765,68529.0,68528.0,0.15988313]
[1729311369610,0.433765,68529.0,68528.0,0.26338423]
[1729311370611,0.433765,68529.0,68528.0,0.2631304]
[1729311374019,0.433765,68529.0,68528.0,0.1597344]
[1729311378708,0.3608,68529.0,68526.0,0.07299]
[1729311379021,0.3608,68529.0,68528.0,0.07299]
[1729311379022,0.072965,68529.0,68528.0,0.07299]
[1729311379320,0.072965,68529.0,68528.0,0.15970887]
[1729311379321,0.433765,68529.0,68528.0,0.15970887]
[1729311380119,0.433765,68529.0,68528.0,0.26306374]
[1729311380421,0.433765,68529.0,68528.0,0.26305454]
[1729311381124,0.072966,68528.0,68527.0,0.072966]
[1729311381423,0.11922053,68528.0,68527.0,0.145956]
[1729311382120,0.11922053,68528.0,68525.0,0.07299]
[1729311382121,0.04625453,68528.0,68525.0,0.07299]
[1729311382321,0.072968,68526.0,68525.0,0.07299]
[1729311382918,0.072968,68526.0,68525.0,0.145959]
[1729311387015,0.11881483,68526.0,68525.0,0.145959]
[1729311387214,0.072968,68526.0,68525.0,0.145959]
[1729311387422,0.11882042,68526.0,68525.0,0.145959]
[1729311387722,0.072968,68526.0,68525.0,0.145959]
[1729311387923,0.11882042,68526.0,68525.0,0.145959]
[1729311389122,0.072968,68526.0,68525.0,0.32056919]
[1729311389820,0.072968,68526.0,68525.0,0.23341392]
[1729311390020,0.072968,68526.0,68525.0,0.32058594]
[1729311390424,0.072968,68526.0,68525.0,0.23313102]
[1729311392621,0.072968,68526.0,68525.0,0.26413848]
[1729311393125,0.072968,68526.0,68525.0,0.26421258]
[1729311393424,0.072968,68526.0,68525.0,0.16016202]
[1729311393621,0.072968,68526.0,68525.0,0.26421411]
[1729311395929,0.072968,68526.0,68525.0,0.16016202]
[1729311396135,0.11880265,68526.0,68525.0,0.07299]
[1729311399631,0.11879038,68526.0,68525.0,0.07299]
[1729311404140,0.11879038,68526.0,68525.0,0.26439416]
[1729311404141,0.072968,68526.0,68525.0,0.26439416]
[1729311409336,0.072968,68526.0,68525.0,0.07299]
[1729311409534,0.072968,68526.0,68525.0,0.26445255]
[1729311411044,0.104768,68526.0,68525.0,0.26445255]
[1729311412047,0.104768,68526.0,68525.0,0.24792117]
[1729311412241,0.104768,68526.0,68525.0,0.16033758]
[1729311414134,0.13155917,68526.0,68525.0,0.1603948]
[1729311416949,0.13155917,68526.0,68525.0,0.0874048]
[1729311417152,0.52365917,68526.0,68525.0,0.0874048]
[1729311417347,1.56145917,68526.0,68525.0,0.16036037]
[1729311417651,0.072969,68525.0,68524.0,0.07295557]
[1729311417847,0.072969,68525.0,68519.0,0.07299]
[1729311417848,0.07297,68524.0,68523.0,0.07295557]
[1729311418053,0.07297,68524.0,68523.0,0.16058326]
[1729311418350,0.67297,68524.0,68523.0,0.16058326]
[1729311418546,0.67297,68524.0,68523.0,0.07295557]
[1729311418852,0.67297,68524.0,68523.0,0.160516]
[1729311419057,0.072975,68520.0,68519.0,0.07299]
[1729311419351,0.47911685,68520.0,68519.0,0.07299]
[1729311419553,0.47911685,68520.0,68510.0,0.072985]
[1729311419554,0.072983,68512.0,68511.0,0.07517933]
[1729311420239,0.072983,68512.0,68511.0,0.10195663]
[1729311424054,0.433783,68512.0,68511.0,0.10195663]
[1729311430354,0.433783,68512.0,68511.0,0.14566615]
[1729311431750,0.433783,68512.0,68508.0,0.07299]
[1729311431960,0.072986,68509.0,68508.0,0.07299]